fUST/lending_fUST_20250516
["ID","MTS","AMOUNT","RATE_DAILY","PERIOD"]
[361244934,1747389048479,-151.0,0.00013835,2]
[361244936,1747389048488,-151.0,0.00013835,2]
[361244938,1747389048498,-350.0,0.00013835,2]
[361244940,1747389048507,-151.0,0.00013835,2]
[361244942,1747389048517,-365.58193868,0.00013835,2]
[361244944,1747389048526,-450.0,0.00013835,2]
[361244946,1747389048535,-450.0,0.00013835,2]
[361244948,1747389048545,-350.0,0.00013835,2]
[361244950,1747389048554,-450.0,0.00013835,2]
[361244952,1747389048563,-350.0,0.00013835,2]
[361244953,1747389048573,-350.0,0.00013835,2]
[361244954,1747389048582,-359.79214509,0.00013835,2]
[361244955,1747389048591,-450.0,0.00013835,2]
[361244956,1747389048601,-450.0,0.00013835,2]
[361244957,1747389048610,-451.32,0.00013835,2]
[361244958,1747389048619,-1559.43,0.00013835,2]
[361244959,1747389048629,-704.07,0.00013835,2]
[361244960,1747389048638,-450.0,0.00013835,2]
[361244961,1747389048648,-450.0,0.00013835,2]
[361244962,1747389048657,-450.0,0.00013835,2]
[361244964,1747389048667,-450.0,0.00013835,2]
[361244966,1747389048677,-450.0,0.00013835,2]
[361244968,1747389048686,-450.0,0.00013835,2]
[361244970,1747389048696,-450.0,0.00013835,2]
[361244972,1747389048706,-1565.56,0.00013835,2]
[361244974,1747389048716,-494.64,0.00013835,2]
[361244977,1747389048726,-1228.32,0.00013835,2]
[361244979,1747389048736,-450.0,0.00013835,2]
[361244981,1747389048746,-734.66,0.00013835,2]
[361244983,1747389048755,-450.0,0.00013835,2]
[361244985,1747389048765,-450.0,0.00013835,2]
[361244987,1747389048776,-450.0,0.00013835,2]
[361244989,1747389048785,-450.0,0.00013835,2]
[361244991,1747389048794,-450.0,0.00013835,2]
[361244993,1747389048805,-450.0,0.00013835,2]
[361244995,1747389048814,-350.0,0.00013835,2]
[361244997,1747389048824,-350.0,0.00013835,2]
[361244999,1747389048834,-359.42031435,0.00013835,2]
[361245001,1747389048843,-450.0,0.00013835,2]
[361245003,1747389048853,-2628.47,0.00013835,2]
[361245005,1747389048863,-748.28,0.00013835,2]
[361245007,1747389048873,-357.32421399,0.00013835,2]
[361245009,1747389048883,-580.05,0.00013835,2]
[361245011,1747389048893,-450.0,0.00013835,2]
[361245013,1747389048903,-502.61767211,0.00013835,2]
[361245015,1747389048912,-356.4285915,0.00013835,2]
[361245017,1747389048922,-450.0,0.00013835,2]
[361245019,1747389048932,-887.73,0.00013835,2]
[361245021,1747389048942,-450.0,0.00013835,2]
[361245023,1747389048952,-450.0,0.00013835,2]
[361245025,1747389048963,-374.88715678,0.00013835,2]
[361245027,1747389048973,-450.0,0.00013835,2]
[361245029,1747389048983,-467.75,0.00013835,2]
[361245031,1747389048993,-450.0,0.00013835,2]
[361245033,1747389049003,-362.49924613,0.00013835,2]
[361245035,1747389049012,-364.38761341,0.00013835,2]
[361245037,1747389049021,-954.48,0.00013835,2]
[361245039,1747389049030,-565.04,0.00013835,2]
[361245045,1747389049079,-450.0,0.00013835,2]
[361245047,1747389049089,-1314.33,0.00013835,2]
[361245049,1747389049098,-450.0,0.00013835,2]
[361245051,1747389049108,-209.93498837,0.00013835,2]
[361245053,1747389049118,-450.0,0.00013835,2]
[361245056,1747389049128,-350.0,0.00013835,2]
[361245057,1747389049139,-1487.55,0.00013835,2]
[361245060,1747389049148,-348.14577533,0.00013835,2]
[361245062,1747389049158,-1644.62,0.00013835,2]
[361245064,1747389049167,-450.0,0.00013835,2]
[361245065,1747389049177,-450.0,0.00013835,2]
[361245068,1747389049187,-440.80753066,0.00013835,2]
[361245070,1747389049196,-355.7974184,0.00013835,2]
[361245072,1747389049206,-238.8966957,0.00013835,2]
[361245073,1747389049215,-450.0,0.00013835,2]
[361245075,1747389049224,-450.0,0.00013835,2]
[361245077,1747389049234,-943.41,0.00013835,2]
[361245079,1747389049246,-450.0,0.00013835,2]
[361245081,1747389049256,-356.22386247,0.00013835,2]
[361245083,1747389049265,-450.0,0.00013835,2]
[361245085,1747389049274,-350.0,0.00013835,2]
[361245087,1747389049284,-450.0,0.00013835,2]
[361245089,1747389049294,-246.81480145,0.00013835,2]
[361245091,1747389049304,-823.86,0.00013835,2]
[361245094,1747389049314,-500.0,0.00013873,2]
[361245096,1747389049324,-500.0,0.00013873,2]
[361245097,1747389049333,-500.0,0.00013873,2]
[361245099,1747389049342,-500.0,0.00013873,2]
[361245101,1747389049351,-500.0,0.00013873,2]
[361245103,1747389049361,-209.69237098,0.00013873,2]
[361245105,1747389049370,-500.0,0.00013873,2]
[361245107,1747389049379,-500.0,0.00013873,2]
[361245109,1747389049389,-500.0,0.00013873,2]
[361245111,1747389049398,-151.0,0.000139,2]
[361245113,1747389049407,-175.8374533,0.000139,2]
[361245116,1747389049417,-175.8374533,0.000139,2]
[361245117,1747389049426,-450.0,0.00013972,2]
[361245119,1747389049435,-300.0,0.00013972,2]
[361245121,1747389049445,-450.0,0.00013972,2]
[361245123,1747389049454,-300.0,0.00013972,2]
[361245125,1747389049464,-450.0,0.00013972,2]
[361245127,1747389049473,-515.71532897,0.00013972,2]
[361245129,1747389049483,-450.0,0.00013972,2]
[361245131,1747389049492,-300.0,0.00013972,2]
[361245133,1747389049502,-300.0,0.00013972,2]
[361245135,1747389049511,-300.0,0.00013972,2]
[361245137,1747389049520,-304.94149628,0.00013972,2]
[361245139,1747389049530,-450.0,0.00013972,2]
[361245141,1747389049539,-450.0,0.00013972,2]
[361245143,1747389049548,-552.26997223,0.00013972,2]
[361245145,1747389049558,-300.0,0.00013972,2]
[361245147,1747389049567,-450.0,0.00013972,2]
[361245149,1747389049577,-450.0,0.00013972,2]
[361245151,1747389049586,-564.98108851,0.00013972,2]
[361245153,1747389049595,-450.0,0.00013972,2]
[361245155,1747389049605,-300.0,0.00013972,2]
[361245157,1747389049614,-300.0,0.00013972,2]
[361245159,1747389049623,-450.0,0.00013972,2]
[361245161,1747389049632,-300.0,0.00013972,2]
[361245163,1747389049641,-300.0,0.00013972,2]
[361245165,1747389049649,-304.71425482,0.00013972,2]
[361245167,1747389049659,-300.0,0.00013972,2]
[361245169,1747389049668,-304.40254934,0.00013972,2]
[361245171,1747389049676,-300.0,0.00013972,2]
[361245173,1747389049686,-300.0,0.00013972,2]
[361245175,1747389049695,-957.23,0.00013972,2]
[361245177,1747389049704,-317.76999194,0.00013972,2]
[361245179,1747389049714,-450.0,0.00013972,2]
[361245181,1747389049723,-450.0,0.00013972,2]
[361245183,1747389049732,-300.0,0.00013972,2]
[361245185,1747389049741,-305.58150225,0.00013972,2]
[361245187,1747389049750,-300.0,0.00013972,2]
[361245189,1747389049760,-300.0,0.00013972,2]
[361245191,1747389049769,-450.0,0.00013972,2]
[361245194,1747389049778,-450.0,0.00013972,2]
[361245195,1747389049793,-439.59053848,0.00013972,2]
[361245197,1747389049802,-450.0,0.00013972,2]
[361245199,1747389049811,-316.54173381,0.00013972,2]
[361245201,1747389049821,-304.47158068,0.00013972,2]
[361245203,1747389049830,-151.0,0.00013972,2]
[361245205,1747389049839,-151.0,0.00013972,2]
[361245207,1747389049848,-450.0,0.00013972,2]
[361245209,1747389049858,-450.0,0.00013972,2]
[361245212,1747389049868,-450.0,0.00013972,2]
[361245214,1747389049877,-450.0,0.00013972,2]
[361245216,1747389049887,-450.0,0.00013972,2]
[361245218,1747389049896,-323.60655619,0.00013972,2]
[361245220,1747389049905,-450.0,0.00013972,2]
[361245222,1747389049915,-300.0,0.00013972,2]
[361245224,1747389049923,-151.0,0.00013972,2]
[361245226,1747389049933,-151.0,0.00013972,2]
[361245228,1747389049942,-300.0,0.00013972,2]
[361245230,1747389049951,-242.339252,0.00013972,2]
[361245232,1747389049960,-300.0,0.00013972,2]
[361245234,1747389049969,-300.0,0.00013972,2]
[361245235,1747389049978,-450.0,0.00013972,2]
[361245238,1747389049987,-300.0,0.00013972,2]
[361245239,1747389049996,-313.5186324,0.00013972,2]
[361245242,1747389050006,-450.0,0.00013972,2]
[361245244,1747389050016,-300.0,0.00013972,2]
[361245246,1747389050025,-300.0,0.00013972,2]
[361245248,1747389050034,-306.64266024,0.00013972,2]
[361245250,1747389050043,-300.0,0.00013972,2]
[361245252,1747389050052,-300.0,0.00013972,2]
[361245254,1747389050061,-300.0,0.00013972,2]
[361245256,1747389050070,-300.0,0.00013972,2]
[361245258,1747389050080,-300.0,0.00013972,2]
[361245260,1747389050089,-450.0,0.00013972,2]
[361245262,1747389050098,-450.0,0.00013972,2]
[361245264,1747389050107,-304.53332574,0.00013972,2]
[361245266,1747389050117,-300.0,0.00013972,2]
[361245268,1747389050126,-320.99160513,0.00013972,2]
[361245270,1747389050135,-300.0,0.00013972,2]
[361245272,1747389050145,-300.0,0.00013972,2]
[361245274,1747389050153,-300.0,0.00013972,2]
[361245276,1747389050162,-300.0,0.00013972,2]
[361245278,1747389050172,-300.0,0.00013972,2]
[361245280,1747389050181,-450.0,0.00013972,2]
[361245282,1747389050191,-450.0,0.00013972,2]
[361245284,1747389050200,-300.0,0.00013972,2]
[361245286,1747389050209,-745.91,0.00013972,2]
[361245288,1747389050219,-300.0,0.00013972,2]
[361245290,1747389050228,-469.97,0.00013972,2]
[361245292,1747389050238,-174.36615569,0.00013972,2]
[361245294,1747389050251,-450.0,0.00013972,2]
[361245296,1747389050261,-300.0,0.00013972,2]
[361245298,1747389050271,-300.0,0.00013972,2]
[361245300,1747389050281,-322.79410507,0.00013972,2]
[361245302,1747389050290,-300.0,0.00013972,2]
[361245304,1747389050299,-373.66,0.00013972,2]
[361245306,1747389050309,-875.77,0.00013972,2]
[361245308,1747389050318,-300.0,0.00013972,2]
[361245310,1747389050327,-151.0,0.00013972,2]
[361245312,1747389050338,-151.0,0.00013972,2]
[361245314,1747389050347,-344.24723088,0.00013972,2]
[361245316,1747389050357,-450.0,0.00013972,2]
[361245318,1747389050366,-311.03255134,0.00013972,2]
[361245321,1747389050376,-450.0,0.00013972,2]
[361245323,1747389050386,-557.53,0.00013972,2]
[361245325,1747389050396,-300.0,0.00013972,2]
[361245327,1747389050405,-300.0,0.00013972,2]
[361245329,1747389050414,-307.62075504,0.00013972,2]
[361245330,1747389050423,-450.0,0.00013972,2]
[361245332,1747389050435,-304.82727651,0.00013972,2]
[361245334,1747389050446,-450.0,0.00013972,2]
[361245336,1747389050456,-800.13,0.00013972,2]
[361245339,1747389050465,-2054.04,0.00013972,2]
[361245340,1747389050475,-450.0,0.00013972,2]
[361245342,1747389050485,-450.0,0.00013972,2]
[361245344,1747389050495,-1073.35,0.00013972,2]
[361245346,1747389050504,-3615.09,0.00013972,2]
[361245349,1747389050514,-898.38,0.00013972,2]
[361245351,1747389050523,-356.090031,0.00013972,2]
[361245353,1747389050533,-890.09,0.00013972,2]
[361245355,1747389050543,-1090.26,0.00013972,2]
[361245357,1747389050552,-300.0,0.00013972,2]
[361245359,1747389050562,-450.0,0.00013972,2]
[361245361,1747389050571,-214.4739206,0.00013972,2]
[361245363,1747389050581,-450.0,0.00013972,2]
[361245365,1747389050590,-450.0,0.00013972,2]
[361245367,1747389050599,-450.0,0.00013972,2]
[361245369,1747389050610,-6142.77,0.00013972,2]
[361245371,1747389050619,-632.43,0.00013972,2]
[361245373,1747389050628,-722.65,0.00013972,2]
[361245375,1747389050638,-450.0,0.00013972,2]
[361245377,1747389050647,-300.0,0.00013972,2]
[361245379,1747389050659,-3231.47,0.00013972,2]
[361245381,1747389050668,-300.0,0.00013972,2]
[361245383,1747389050678,-300.0,0.00013972,2]
[361245385,1747389050689,-305.33195521,0.00013972,2]
[361245387,1747389050698,-450.0,0.00013972,2]
[361245389,1747389050708,-210.68733923,0.00013972,2]
[361245391,1747389050718,-303.83891837,0.00013972,2]
[361245393,1747389050727,-2585.15,0.00013972,2]
[361245395,1747389050736,-1250.34,0.00013972,2]
[361245397,1747389050746,-450.0,0.00013972,2]
[361245399,1747389050755,-450.0,0.00013972,2]
[361245401,1747389050766,-312.57628775,0.00013972,2]
[361245404,1747389050776,-320.89179121,0.00013972,2]
[361245406,1747389050785,-300.0,0.00013972,2]
[361245408,1747389050795,-450.0,0.00013972,2]
[361245410,1747389050804,-5477.61,0.00013972,2]
[361245412,1747389050813,-450.0,0.00013972,2]
[361245414,1747389050823,-508.61,0.00013972,2]
[361245416,1747389050832,-450.0,0.00013972,2]
[361245418,1747389050841,-450.0,0.00013972,2]
[361245420,1747389050851,-507.61,0.00013972,2]
[361245422,1747389050860,-837.01,0.00013972,2]
[361245424,1747389050870,-450.0,0.00013972,2]
[361245426,1747389050879,-2224.75,0.00013972,2]
[361245428,1747389050889,-450.0,0.00013972,2]
[361245430,1747389050898,-493.99,0.00013972,2]
[361245432,1747389050909,-450.0,0.00013972,2]
[361245434,1747389050918,-7686.99,0.00013972,2]
[361245436,1747389050927,-300.0,0.00013972,2]
[361245438,1747389050936,-300.0,0.00013972,2]
[361245440,1747389050946,-300.0,0.00013972,2]
[361245442,1747389050956,-450.0,0.00013972,2]
[361245444,1747389050965,-601.19,0.00013972,2]
[361245446,1747389050975,-450.0,0.00013972,2]
[361245448,1747389050985,-303.85326898,0.00013972,2]
[361245450,1747389050994,-300.0,0.00013972,2]
[361245452,1747389051004,-450.0,0.00013972,2]
[361245454,1747389051013,-450.0,0.00013972,2]
[361245456,1747389051023,-450.0,0.00013972,2]
[361245458,1747389051032,-304.47149506,0.00013972,2]
[361245460,1747389051042,-450.0,0.00013972,2]
[361245462,1747389051051,-690.24,0.00013972,2]
[361245464,1747389051061,-182.595512,0.00013972,2]
[361245466,1747389051070,-1182.69,0.00013972,2]
[361245468,1747389051080,-450.0,0.00013972,2]
[361245470,1747389051089,-482.92,0.00013972,2]
[361245472,1747389051099,-450.0,0.00013972,2]
[361245474,1747389051108,-588.67,0.00013972,2]
[361245476,1747389051118,-450.0,0.00013972,2]
[361245478,1747389051127,-976.59,0.00013972,2]
[361245480,1747389051137,-590.57,0.00013972,2]
[361245482,1747389051146,-450.0,0.00013972,2]
[361245484,1747389051157,-2475.12,0.00013972,2]
[361245486,1747389051167,-450.0,0.00013972,2]
[361245488,1747389051176,-151.0,0.00013972,2]
[361245490,1747389051185,-762.6,0.00013972,2]
[361245492,1747389051195,-1913.0,0.00013972,2]
[361245495,1747389051206,-151.0,0.00013972,2]
[361245497,1747389051215,-450.0,0.00013972,2]
[361245499,1747389051225,-927.25,0.00013972,2]
[361245501,1747389051234,-151.0,0.00013972,2]
[361245503,1747389051246,-450.0,0.00013972,2]
[361245505,1747389051257,-450.0,0.00013972,2]
[361245507,1747389051267,-450.0,0.00013972,2]
[361245509,1747389051276,-450.0,0.00013972,2]
[361245511,1747389051287,-303.53751689,0.00013972,2]
[361245513,1747389051298,-451.32,0.00013972,2]
[361245515,1747389051308,-1559.43,0.00013972,2]
[361245517,1747389051317,-704.07,0.00013972,2]
[361245519,1747389051327,-450.0,0.00013972,2]
[361245521,1747389051338,-450.0,0.00013972,2]
[361245523,1747389051348,-300.0,0.00013972,2]
[361245525,1747389051357,-450.0,0.00013972,2]
[361245527,1747389051367,-516.40668041,0.00013972,2]
[361245529,1747389051376,-300.0,0.00013972,2]
[361245531,1747389051386,-1565.56,0.00013972,2]
[361245533,1747389051396,-300.0,0.00013972,2]
[361245535,1747389051406,-494.64,0.00013972,2]
[361245537,1747389051416,-1228.32,0.00013972,2]
[361245539,1747389051425,-319.77886499,0.00013972,2]
[361245541,1747389051435,-734.66,0.00013972,2]
[361245544,1747389051446,-450.0,0.00013972,2]
[361245546,1747389051457,-450.0,0.00013972,2]
[361245548,1747389051467,-308.67535326,0.00013972,2]
[361245550,1747389051476,-450.0,0.00013972,2]
[361245552,1747389051486,-450.0,0.00013972,2]
[361245554,1747389051496,-450.0,0.00013972,2]
[361245556,1747389051506,-450.0,0.00013972,2]
[361245558,1747389051515,-2628.47,0.00013972,2]
[361245560,1747389051525,-748.28,0.00013972,2]
[361245562,1747389051536,-580.05,0.00013972,2]
[361245564,1747389051546,-396.87933725,0.00013972,2]
[361245566,1747389051555,-450.0,0.00013972,2]
[361245568,1747389051565,-887.73,0.00013972,2]
[361245570,1747389051575,-450.0,0.00013972,2]
[361245572,1747389051584,-300.0,0.00013972,2]
[361245574,1747389051594,-300.0,0.00013972,2]
[361245576,1747389051604,-467.75,0.00013972,2]
[361245578,1747389051614,-300.0,0.00013972,2]
[361245580,1747389051623,-565.04,0.00013972,2]
[361245582,1747389051633,-954.48,0.00013972,2]
[361245584,1747389051643,-313.84184174,0.00013972,2]
[361245586,1747389051653,-1314.33,0.00013972,2]
[361245588,1747389051663,-450.0,0.00013972,2]
[361245590,1747389051673,-506.15970409,0.00013972,2]
[361245592,1747389051682,-1487.55,0.00013972,2]
[361245594,1747389051692,-1644.62,0.00013972,2]
[361245596,1747389051702,-450.0,0.00013972,2]
[361245598,1747389051712,-450.0,0.00013972,2]
[361245600,1747389051722,-300.0,0.00013972,2]
[361245603,1747389051733,-300.0,0.00013972,2]
[361245605,1747389051743,-943.41,0.00013972,2]
[361245607,1747389051753,-450.0,0.00013972,2]
[361245609,1747389051762,-450.0,0.00013972,2]
[361245611,1747389051772,-450.0,0.00013972,2]
[361245613,1747389051781,-823.86,0.00013972,2]
[361245615,1747389051790,-1112.25088437,0.00013976,2]
[361245617,1747389051800,-1030.32426093,0.00014,2]
[361245619,1747389051809,-151.0,0.00014,2]
[361245621,1747389051820,-157.9553211,0.00014,2]
[361245623,1747389051830,-175.8374533,0.00014,2]
[361245625,1747389051839,-500.0,0.00014,2]
[361245627,1747389051849,-2200.0,0.00014013,2]
[361245629,1747389051858,-250.0,0.00014063,2]
[361245631,1747389051868,-151.0,0.000141,2]
[361245633,1747389051877,-151.0,0.000141,2]
[361245635,1747389051887,-258.86678483,0.00014109,2]
[361245637,1747389051897,-250.0,0.00014109,2]
[361245639,1747389051906,-250.0,0.00014109,2]
[361245641,1747389051916,-250.0,0.00014109,2]
[361245643,1747389051926,-250.0,0.00014109,2]
[361245646,1747389051935,-250.0,0.00014109,2]
[361245648,1747389051946,-250.0,0.00014109,2]
[361245650,1747389051956,-450.0,0.00014109,2]
[361245652,1747389051965,-356.60203319,0.00014109,2]
[361245654,1747389051974,-250.0,0.00014109,2]
[361245656,1747389051984,-957.23,0.00014109,2]
[361245658,1747389051994,-450.0,0.00014109,2]
[361245660,1747389052003,-250.0,0.00014109,2]
[361245662,1747389052013,-300.0,0.00014109,2]
[361245664,1747389052023,-450.0,0.00014109,2]
[361245666,1747389052032,-250.0,0.00014109,2]
[361245668,1747389052042,-151.0,0.00014109,2]
[361245670,1747389052052,-450.0,0.00014109,2]
[361245672,1747389052062,-450.0,0.00014109,2]
[361245674,1747389052071,-450.0,0.00014109,2]
[361245676,1747389052081,-450.0,0.00014109,2]
[361245678,1747389052092,-250.0,0.00014109,2]
[361245680,1747389052101,-550.02945918,0.00014109,2]
[361245682,1747389052111,-151.0,0.00014109,2]
[361245684,1747389052121,-524.31699698,0.00014109,2]
[361245687,1747389052131,-250.0,0.00014109,2]
[361245689,1747389052141,-250.0,0.00014109,2]
[361245691,1747389052150,-450.0,0.00014109,2]
[361245693,1747389052160,-250.0,0.00014109,2]
[361245695,1747389052170,-450.0,0.00014109,2]
[361245697,1747389052180,-745.91,0.00014109,2]
[361245699,1747389052190,-469.97,0.00014109,2]
[361245701,1747389052199,-450.0,0.00014109,2]
[361245703,1747389052209,-875.77,0.00014109,2]
[361245705,1747389052218,-151.0,0.00014109,2]
[361245707,1747389052229,-450.0,0.00014109,2]
[361245709,1747389052239,-450.0,0.00014109,2]
[361245711,1747389052251,-557.53,0.00014109,2]
[361245713,1747389052260,-450.0,0.00014109,2]
[361245715,1747389052269,-450.0,0.00014109,2]
[361245717,1747389052279,-800.13,0.00014109,2]
[361245719,1747389052288,-2054.04,0.00014109,2]
[361245721,1747389052298,-450.0,0.00014109,2]
[361245723,1747389052308,-450.0,0.00014109,2]
[361245725,1747389052318,-1073.35,0.00014109,2]
[361245727,1747389052328,-3615.09,0.00014109,2]
[361245729,1747389052337,-898.38,0.00014109,2]
[361245731,1747389052347,-890.09,0.00014109,2]
[361245733,1747389052357,-1090.26,0.00014109,2]
[361245735,1747389052366,-450.0,0.00014109,2]
[361245737,1747389052376,-450.0,0.00014109,2]
[361245739,1747389052386,-450.0,0.00014109,2]
[361245741,1747389052395,-450.0,0.00014109,2]
[361245743,1747389052407,-6142.77,0.00014109,2]
[361245745,1747389052418,-632.43,0.00014109,2]
[361245747,1747389052429,-722.65,0.00014109,2]
[361245749,1747389052439,-540.23413708,0.00014109,2]
[361245751,1747389052448,-3231.47,0.00014109,2]
[361245752,1747389052458,-450.0,0.00014109,2]
[361245754,1747389052468,-2585.15,0.00014109,2]
[361245756,1747389052478,-1250.34,0.00014109,2]
[361245758,1747389052487,-450.0,0.00014109,2]
[361245760,1747389052497,-450.0,0.00014109,2]
[361245762,1747389052507,-450.0,0.00014109,2]
[361245764,1747389052518,-5477.61,0.00014109,2]
[361245766,1747389052528,-450.0,0.00014109,2]
[361245768,1747389052538,-508.61,0.00014109,2]
[361245770,1747389052548,-450.0,0.00014109,2]
[361245772,1747389052558,-450.0,0.00014109,2]
[361245774,1747389052567,-507.61,0.00014109,2]
[361245776,1747389052576,-837.01,0.00014109,2]
[361245778,1747389052586,-2224.75,0.00014109,2]
[361245780,1747389052595,-450.0,0.00014109,2]
[361245782,1747389052605,-493.99,0.00014109,2]
[361245784,1747389052614,-235.846454,0.00014109,2]
[361245786,1747389052624,-7686.99,0.00014109,2]
[361245788,1747389052634,-450.0,0.00014109,2]
[361245790,1747389052644,-601.19,0.00014109,2]
[361245805,1747389052786,-450.0,0.00014109,2]
[361245807,1747389052796,-450.0,0.00014109,2]
[361245809,1747389052805,-450.0,0.00014109,2]
[361245811,1747389052816,-450.0,0.00014109,2]
[361245812,1747389052831,-450.0,0.00014109,2]
[361245814,1747389052846,-690.24,0.00014109,2]
[361245816,1747389052855,-1182.69,0.00014109,2]
[361245818,1747389052865,-450.0,0.00014109,2]
[361245820,1747389052874,-482.92,0.00014109,2]
[361245822,1747389052883,-250.0,0.00014109,2]
[361245824,1747389052893,-588.67,0.00014109,2]
[361245826,1747389052902,-450.0,0.00014109,2]
[361245828,1747389052912,-976.59,0.00014109,2]
[361245830,1747389052922,-590.57,0.00014109,2]
[361245832,1747389052931,-450.0,0.00014109,2]
[361245834,1747389052942,-2475.12,0.00014109,2]
[361245836,1747389052952,-450.0,0.00014109,2]
[361245838,1747389052962,-762.6,0.00014109,2]
[361245840,1747389052971,-215.284168,0.00014109,2]
[361245842,1747389052981,-151.0,0.00014109,2]
[361245844,1747389052990,-450.0,0.00014109,2]
[361245846,1747389053000,-1913.0,0.00014109,2]
[361245848,1747389053009,-151.0,0.00014109,2]
[361245850,1747389053018,-927.25,0.00014109,2]
[361245852,1747389053028,-151.0,0.00014109,2]
[361245854,1747389053038,-151.0,0.00014109,2]
[361245856,1747389053047,-250.0,0.00014109,2]
[361245858,1747389053057,-346.12578421,0.00014109,2]
[361245859,1747389053067,-450.0,0.00014109,2]
[361245862,1747389053077,-450.0,0.00014109,2]
[361245863,1747389053086,-451.32,0.00014109,2]
[361245865,1747389053096,-1559.43,0.00014109,2]
[361245867,1747389053106,-704.07,0.00014109,2]
[361245869,1747389053115,-450.0,0.00014109,2]
[361245871,1747389053125,-450.0,0.00014109,2]
[361245873,1747389053134,-450.0,0.00014109,2]
[361245875,1747389053144,-1565.56,0.00014109,2]
[361245877,1747389053154,-494.64,0.00014109,2]
[361245879,1747389053164,-1228.32,0.00014109,2]
[361245881,1747389053173,-734.66,0.00014109,2]
[361245883,1747389053183,-450.0,0.00014109,2]
[361245885,1747389053194,-450.0,0.00014109,2]
[361245887,1747389053203,-250.0,0.00014109,2]
[361245889,1747389053212,-450.0,0.00014109,2]
[361245891,1747389053221,-450.0,0.00014109,2]
[361245893,1747389053231,-252.23502162,0.00014109,2]
[361245895,1747389053241,-2628.47,0.00014109,2]
[361245897,1747389053256,-748.28,0.00014109,2]
[361245899,1747389053266,-580.05,0.00014109,2]
[361245900,1747389053275,-450.0,0.00014109,2]
[361245902,1747389053285,-887.73,0.00014109,2]
[361245904,1747389053295,-450.0,0.00014109,2]
[361245906,1747389053304,-467.75,0.00014109,2]
[361245908,1747389053313,-565.04,0.00014109,2]
[361245910,1747389053322,-954.48,0.00014109,2]
[361245912,1747389053332,-1314.33,0.00014109,2]
[361245914,1747389053343,-450.0,0.00014109,2]
[361245915,1747389053352,-1487.55,0.00014109,2]
[361245916,1747389053361,-1644.62,0.00014109,2]
[361245917,1747389053370,-253.27911492,0.00014109,2]
[361245918,1747389053380,-450.0,0.00014109,2]
[361245919,1747389053389,-943.41,0.00014109,2]
[361245920,1747389053399,-250.0,0.00014109,2]
[361245921,1747389053408,-250.0,0.00014109,2]
[361245922,1747389053418,-250.0,0.00014109,2]
[361245923,1747389053428,-15049.39405921,0.00014141,2]
[361245924,1747389053438,-155.0,0.00014142,2]
[361245925,1747389053448,-2205.4821024,0.00014174,2]
[361245926,1747389053458,-151.0,0.000142,2]
[361245927,1747389053467,-1000.0,0.00014221,2]
[361245928,1747389053476,-1000.0,0.00014221,2]
[361245929,1747389053486,-1000.0,0.00014221,2]